bitfinex/quotes_BTCUSD_20220115
["timestamp","ask_amount","ask_price","bid_price","bid_amount"]
[1642271029788,0.1448219,43322.0,43315.0,0.057696]
[1642271029987,0.1448219,43322.0,43318.0,0.28598231]
[1642271030188,0.1448219,43322.0,43312.0,0.00012033]
[1642271030635,0.1448219,43322.0,43315.0,0.00055563]
[1642271031039,0.1448219,43322.0,43308.0,0.35137279]
[1642271031234,0.1448219,43322.0,43308.0,0.35257516]
[1642271031537,0.00015471,43321.0,43313.0,0.33707694]
[1642271031935,0.00013752,43320.0,43313.0,0.43707694]
[1642271032335,0.00012033,43319.0,43313.0,0.43707694]
[1642271032736,0.00010314,43318.0,43313.0,0.43707694]
[1642271033137,0.13018092,43323.0,43314.0,0.057697]
[1642271033138,8.595e-05,43317.0,43314.0,0.057697]
[1642271033535,0.14510109,43323.0,43314.0,0.057697]
[1642271033536,6.876e-05,43316.0,43314.0,0.057697]
[1642271033936,0.0001719,43322.0,43314.0,0.057697]
[1642271034137,0.0001719,43322.0,43320.0,0.25102346]
[1642271034396,0.00015471,43321.0,43320.0,0.25102346]
[1642271034597,0.00015471,43321.0,43320.0,0.80102346]
[1642271034797,0.0001719,43321.0,43320.0,0.80102346]
[1642271035396,0.0001719,43321.0,43320.0,0.90102346]
[1642271035595,0.0001719,43321.0,43320.0,2.05871146]
[1642271036198,0.0001719,43321.0,43320.0,2.01401146]
[1642271040337,0.0001719,43321.0,43320.0,0.81401146]
[1642271040538,0.0001719,43321.0,43320.0,1.36401146]
[1642271041138,0.0001719,43321.0,43320.0,1.31921146]
[1642271041539,0.0001719,43321.0,43320.0,1.71921146]
[1642271042588,0.0001719,43321.0,43320.0,2.26921146]
[1642271043496,0.0001719,43321.0,43320.0,1.71921146]
[1642271043893,0.0001719,43321.0,43320.0,1.61921146]
[1642271044093,0.0001719,43321.0,43320.0,1.71921146]
[1642271045394,0.0001719,43321.0,43320.0,1.31921146]
[1642271045651,0.0001719,43321.0,43320.0,1.76921146]
[1642271046251,0.0001719,43321.0,43320.0,1.72451146]
[1642271046651,0.0001719,43321.0,43320.0,1.27451146]
[1642271047052,0.0001719,43321.0,43320.0,1.27060146]
[1642271047253,0.0001719,43321.0,43320.0,1.26669146]
[1642271047457,0.0001719,43321.0,43320.0,1.81669146]
[1642271047655,0.0001719,43321.0,43320.0,1.91669146]
[1642271048955,0.0001719,43321.0,43320.0,1.96279146]
[1642271049389,0.0001719,43321.0,43320.0,2.76279146]
[1642271051191,0.0001719,43321.0,43320.0,2.71809146]
[1642271055949,0.00093414,43323.0,43320.0,2.71809146]
[1642271055950,6.04e-06,43323.0,43320.0,3.27547597]
[1642271056149,6.04e-06,43323.0,43322.0,0.5759]
[1642271056346,6.04e-06,43323.0,43322.0,0.6656]
[1642271056546,0.0037357,43333.0,43324.0,0.03855539]
[1642271056796,0.00123267,43343.0,43329.0,0.5759]
[1642271056992,0.0001719,43332.0,43330.0,0.18920682]
[1642271057293,0.25101737,43341.0,43331.0,1.3158651]
[1642271057489,0.00123267,43343.0,43331.0,1.3158651]
[1642271057490,0.00123267,43343.0,43332.0,0.0461]
[1642271057694,0.00022347,43335.0,43332.0,0.0461]
[1642271058090,0.00020628,43334.0,43332.0,0.0461]
[1642271058494,0.00018909,43333.0,43332.0,0.0461]
[1642271059393,0.00018909,43333.0,43332.0,1.2461]
[1642271059592,0.00018909,43333.0,43332.0,1.3461]
[1642271061340,0.00018909,43333.0,43332.0,1.3012]
[1642271065298,0.00018909,43333.0,43332.0,2.2012]
[1642271065995,0.00018909,43333.0,43332.0,1.3012]
[1642271066392,0.00018909,43333.0,43332.0,1.2565]
[1642271067192,0.00018909,43333.0,43332.0,1.9526]
[1642271067896,0.00018909,43333.0,43332.0,1.95380743]
[1642271068340,0.00018909,43333.0,43332.0,2.60380743]
[1642271069339,0.00018909,43333.0,43332.0,1.95380743]
[1642271069740,0.00018909,43333.0,43332.0,1.30380743]
[1642271070548,0.00018909,43333.0,43332.0,1.30142743]
[1642271071141,0.00018909,43333.0,43332.0,1.80142743]
[1642271071340,0.00018909,43333.0,43332.0,1.75682743]
[1642271071542,0.00018909,43333.0,43332.0,1.75408743]
[1642271073196,0.00018909,43333.0,43332.0,2.55408743]
[1642271073393,0.00018909,43333.0,43332.0,1.75408743]
[1642271075397,0.00018909,43333.0,43332.0,1.25408743]
[1642271076437,0.00018909,43333.0,43332.0,1.26938743]
[1642271078043,0.00018909,43333.0,43332.0,1.96938743]
[1642271079990,0.00018909,43333.0,43332.0,1.26938743]
[1642271081393,0.00018909,43333.0,43332.0,1.22468743]
[1642271082092,0.00018909,43333.0,43332.0,0.16]
[1642271082291,0.33724587,43333.0,43332.0,0.06]
[1642271086446,0.33724587,43333.0,43332.0,0.0153]
[1642271091344,0.33724587,43333.0,43327.0,0.36045454]
[1642271091741,0.0001719,43332.0,43327.0,0.36045454]
[1642271091941,0.00110596,43332.0,43327.0,0.36045454]
[1642271092140,0.00015471,43331.0,43327.0,0.36045454]
[1642271092540,0.00013752,43330.0,43327.0,0.26045454]
[1642271092741,0.00013752,43330.0,43327.0,0.36045454]
[1642271092942,0.00012033,43329.0,43327.0,0.36045454]
[1642271093343,0.00010314,43328.0,43327.0,0.36045454]
[1642271093542,0.00010314,43328.0,43325.0,0.057683]
[1642271093742,0.00010314,43328.0,43322.0,0.115361]
[1642271093945,8.595e-05,43327.0,43322.0,0.115361]
[1642271094142,8.595e-05,43327.0,43319.0,0.115371]
[1642271094395,6.876e-05,43326.0,43319.0,0.115371]
[1642271094594,6.876e-05,43326.0,43322.0,0.32288208]
[1642271094995,6.876e-05,43326.0,43322.0,0.42288208]
[1642271095396,0.00100287,43326.0,43322.0,0.42288208]
[1642271096096,0.00100287,43326.0,43322.0,0.1]
[1642271096296,0.00100287,43326.0,43319.0,0.115371]
[1642271096501,0.00100287,43326.0,43319.0,0.070571]
[1642271096502,6.876e-05,43326.0,43319.0,0.070571]
[1642271096696,0.00100287,43326.0,43319.0,0.070571]
[1642271097098,0.00100287,43326.0,43321.0,0.32125395]
[1642271097699,6.876e-05,43326.0,43321.0,0.42125395]
[1642271097898,0.00100287,43326.0,43321.0,0.42125395]
[1642271098746,6.876e-05,43326.0,43321.0,0.42125395]
[1642271098946,0.00100287,43326.0,43321.0,0.42125395]
[1642271100048,6.876e-05,43326.0,43321.0,0.1]
[1642271100247,0.38218103,43326.0,43319.0,0.070571]
[1642271100449,0.38218103,43326.0,43318.0,0.00055846]
[1642271101048,0.38218103,43326.0,43318.0,0.28600225]
[1642271101250,0.38124692,43326.0,43318.0,0.28544379]
[1642271101450,0.0009341,43325.0,43318.0,0.24140226]
[1642271102492,0.38124692,43326.0,43318.0,0.24084379]
[1642271102790,0.0009341,43325.0,43318.0,0.24140226]
[1642271103190,0.00123509,43324.0,43318.0,0.00055847]
[1642271103591,0.00123509,43324.0,43312.0,0.115388]
[1642271103793,0.00123509,43324.0,43318.0,0.00055848]
[1642271104794,0.00123509,43324.0,43315.0,0.25743282]
[1642271105093,0.33472503,43323.0,43318.0,0.00055848]
[1642271105294,0.00124908,43319.0,43318.0,0.00055848]
[1642271105746,0.00124908,43319.0,43318.0,0.00062724]
[1642271106144,0.00124908,43319.0,43318.0,6.876e-05]
[1642271106548,0.12491585,43319.0,43312.0,0.1577]
[1642271106949,0.00124908,43319.0,43313.0,6.876e-05]
[1642271107946,0.00124908,43319.0,43313.0,0.26717879]
[1642271109598,0.00625807,43324.0,43313.0,0.26717879]
[1642271109795,0.00625807,43324.0,43320.0,0.24483856]
[1642271109993,0.00010314,43323.0,43320.0,0.24483856]
[1642271110394,8.595e-05,43322.0,43320.0,0.24483856]
[1642271110795,6.876e-05,43321.0,43320.0,0.24483856]
[1642271111594,6.876e-05,43321.0,43320.0,0.24463856]
[1642271113642,6.876e-05,43321.0,43320.0,0.59463856]
[1642271115242,6.876e-05,43321.0,43320.0,0.24463856]
[1642271115641,0.00501952,43324.0,43320.0,0.24463856]
[1642271115843,0.00093414,43323.0,43320.0,0.24463856]
[1642271116442,0.00093414,43323.0,43319.0,0.05769]
[1642271116645,0.00093414,43323.0,43314.0,0.00055423]
[1642271116646,0.00123989,43316.0,43314.0,0.00055423]
[1642271116903,0.00123989,43316.0,43305.0,0.00221737]
[1642271116904,0.7,43314.0,43299.0,0.5]
[1642271117097,0.00125837,43304.0,43302.0,0.5]
[1642271117298,0.00125837,43304.0,43303.0,0.00024066]
[1642271117697,0.00125837,43304.0,43302.0,0.00025785]
[1642271118899,0.12514022,43304.0,43302.0,0.00025785]
[1642271121544,0.12514022,43304.0,43297.0,0.29717268]
[1642271122045,0.12514022,43304.0,43301.0,0.00055746]
[1642271122846,0.12514022,43304.0,43298.0,6.876e-05]
[1642271123048,0.12514022,43304.0,43299.0,0.00036088]
[1642271124049,0.12514022,43304.0,43298.0,6.876e-05]
[1642271124294,0.12514022,43304.0,43299.0,0.0005532]
[1642271124497,0.31638204,43300.0,43299.0,0.0005532]
[1642271124695,0.4449262,43300.0,43299.0,0.0005532]
[1642271125096,0.00120333,43300.0,43299.0,0.0005532]
[1642271125300,0.00120333,43300.0,43295.0,0.00012033]
[1642271125497,0.00120333,43300.0,43297.0,0.00055324]
[1642271126197,0.34105089,43298.0,43297.0,0.00055324]
[1642271126400,0.34105089,43298.0,43295.0,0.00012033]
[1642271126598,0.34105089,43298.0,43295.0,0.00055328]
[1642271127700,0.34105089,43298.0,43291.0,0.27101138]
[1642271128055,0.34105089,43298.0,43294.0,0.0005533]
[1642271128947,0.34105089,43298.0,43292.0,8.595e-05]
[1642271129147,0.11956394,43297.0,43294.0,0.00055331]
[1642271129352,0.00128883,43295.0,43294.0,0.00055331]
[1642271130149,0.00128883,43295.0,43291.0,0.00010314]
[1642271130348,0.27713662,43294.0,43292.0,0.00055334]
[1642271130750,0.27713662,43294.0,43293.0,6.876e-05]
[1642271131449,0.75116926,43294.0,43291.0,0.00055336]
[1642271131651,0.75245982,43294.0,43281.0,0.0022]
[1642271131911,6.876e-05,43293.0,43281.0,0.0022]
[1642271132212,0.00129239,43289.0,43282.0,0.00012034]
[1642271132611,0.32774956,43286.0,43282.0,0.00012034]
[1642271133413,0.00129239,43289.0,43282.0,0.00012034]
[1642271133815,0.00129239,43289.0,43284.0,0.057737]
[1642271134012,0.00129239,43289.0,43283.0,0.00035823]
[1642271134214,0.00122516,43284.0,43283.0,0.00035823]
[1642271134612,0.00122516,43284.0,43283.0,0.00046138]
[1642271134812,0.00122516,43284.0,43283.0,0.00010315]
[1642271135115,0.00122516,43284.0,43282.0,0.00012034]
[1642271136549,0.00122516,43284.0,43276.0,0.28060222]
[1642271136748,0.00122516,43284.0,43276.0,0.24488474]
[1642271136949,0.00122516,43284.0,43277.0,8.595e-05]
[1642271137349,0.00122516,43284.0,43278.0,0.057746]
[1642271137749,0.00122516,43284.0,43277.0,8.595e-05]
[1642271138055,0.00122516,43284.0,43276.0,0.00010314]
[1642271138648,0.00122516,43284.0,43278.0,0.24625764]
[1642271139714,0.00122516,43284.0,43278.0,0.2459049]
[1642271139913,0.00122516,43284.0,43279.0,0.00035273]
[1642271140113,0.11951462,43287.0,43279.0,0.00035273]
[1642271140316,0.34222267,43288.0,43279.0,0.00035273]
[1642271140516,6.877e-05,43286.0,43279.0,0.00035273]
[1642271140714,0.1191813,43287.0,43279.0,0.00035273]
[1642271140916,0.1191813,43287.0,43278.0,0.2459049]
[1642271141114,0.00100319,43286.0,43279.0,0.0005285]
[1642271141515,0.00093442,43286.0,43279.0,0.0005285]
[1642271141715,0.00093442,43286.0,43278.0,0.2015334]
[1642271142015,8.596e-05,43287.0,43278.0,0.2592784]
[1642271142215,0.12403554,43287.0,43278.0,0.2592784]
[1642271142417,6.877e-05,43286.0,43278.0,0.2592784]
[1642271142815,8.596e-05,43287.0,43278.0,0.2592784]
[1642271143249,6.877e-05,43286.0,43278.0,0.2592784]
[1642271145853,0.00093445,43284.0,43278.0,0.2592784]
[1642271146063,0.00093445,43284.0,43280.0,0.115474]
[1642271146255,0.00093445,43284.0,43281.0,0.0461]
[1642271146655,0.00093445,43284.0,43281.0,0.0015]
[1642271146901,6.877e-05,43286.0,43281.0,0.0015]
[1642271147102,0.00093445,43285.0,43281.0,0.0015]
[1642271148103,6.877e-05,43286.0,43281.0,0.0015]
[1642271148303,0.00093445,43285.0,43282.0,0.057736]
[1642271148504,0.00093445,43285.0,43282.0,0.103836]
[1642271149403,0.00100321,43286.0,43282.0,0.103836]
[1642271150548,6.877e-05,43286.0,43282.0,0.103836]
[1642271150751,0.00100321,43286.0,43282.0,0.103836]
[1642271151749,6.877e-05,43286.0,43282.0,0.058936]
[1642271151948,0.00100321,43286.0,43282.0,0.058936]
[1642271152350,0.00100321,43286.0,43285.0,1.40321287]
[1642271152649,0.00100321,43286.0,43285.0,1.2961]
[1642271152849,6.877e-05,43286.0,43285.0,1.2961]
[1642271153749,6.877e-05,43286.0,43285.0,1.55072529]
[1642271153952,6.877e-05,43286.0,43285.0,1.45072529]
[1642271154150,6.877e-05,43286.0,43285.0,1.55072529]
[1642271155194,6.877e-05,43286.0,43285.0,0.85072529]
[1642271156096,6.877e-05,43286.0,43285.0,1.06618629]
[1642271156296,6.877e-05,43286.0,43285.0,2.11618629]
[1642271156695,6.877e-05,43286.0,43285.0,2.07158629]
[1642271157496,6.877e-05,43286.0,43285.0,1.02158629]
[1642271158161,6.877e-05,43286.0,43285.0,1.57158629]
[1642271158561,6.877e-05,43286.0,43285.0,1.02158629]
[1642271159164,6.877e-05,43286.0,43285.0,1.62158629]
[1642271159361,6.877e-05,43286.0,43285.0,1.02158629]
[1642271161263,0.85183209,43297.0,43285.0,1.02158629]
[1642271161264,0.5944,43297.0,43286.0,2.45]
[1642271161470,0.00123842,43301.0,43288.0,0.5759]
[1642271161675,0.00012033,43293.0,43289.0,0.116739]
[1642271161916,0.4665724,43302.0,43296.0,0.25760711]
[1642271162117,0.3071,43303.0,43297.0,0.0461]
[1642271162319,0.00013752,43301.0,43297.0,0.0461]
[1642271162715,0.00012033,43300.0,43297.0,0.0461]
[1642271162916,0.00012033,43300.0,43297.0,0.103814]
[1642271163115,0.00010314,43299.0,43297.0,0.103814]
[1642271163418,0.00093431,43302.0,43298.0,0.13065913]
[1642271163615,0.00093431,43302.0,43299.0,0.0461]
[1642271163815,0.00013752,43301.0,43300.0,0.0461]
[1642271166751,0.00013752,43301.0,43300.0,0.0014]
[1642271167151,0.00013752,43301.0,43300.0,1.3014]
[1642271169153,0.00013752,43301.0,43300.0,1.4014]
[1642271171206,0.00013752,43301.0,43300.0,2.5514]
[1642271171608,0.00013752,43301.0,43300.0,1.4014]
[1642271171905,0.00013752,43301.0,43300.0,1.3566]
[1642271172108,0.00013752,43301.0,43300.0,1.4027]
[1642271173149,0.00013752,43301.0,43300.0,2.0027]
[1642271174053,0.00013752,43301.0,43300.0,2.5527]
[1642271174251,0.00093431,43303.0,43301.0,2.35]
[1642271174452,0.0005297,43314.0,43302.0,2.69750257]
[1642271174657,0.0005297,43314.0,43310.0,0.30616523]
[1642271174852,0.00020628,43313.0,43311.0,0.0461]
[1642271175251,0.00018909,43312.0,43311.0,0.0461]
[1642271176900,0.00018909,43312.0,43311.0,0.0013]
[1642271177205,0.00018909,43312.0,43311.0,0.52768529]
[1642271177600,0.00018909,43312.0,43311.0,0.5013]
[1642271177803,0.00018909,43312.0,43311.0,0.62932064]
[1642271179201,0.00018909,43312.0,43311.0,0.1013]
[1642271179704,0.00018909,43312.0,43305.0,0.0461]
[1642271179904,0.00018909,43312.0,43304.0,0.11541]
[1642271179905,0.00018909,43312.0,43303.0,0.2915]
[1642271180101,0.0001719,43311.0,43298.0,0.0461]
[1642271180301,0.24169503,43307.0,43302.0,0.24858325]
[1642271180754,8.595e-05,43306.0,43302.0,0.24858325]
[1642271181155,6.876e-05,43305.0,43302.0,0.24858325]
[1642271181353,6.876e-05,43305.0,43301.0,0.115418]
[1642271181555,6.876e-05,43305.0,43298.0,0.0461]
[1642271181556,8.595e-05,43306.0,43298.0,0.0461]
[1642271181753,8.595e-05,43306.0,43298.0,0.0015]
[1642271181953,0.00100305,43305.0,43298.0,0.0015]
[1642271182355,0.00093429,43305.0,43298.0,0.0015]
[1642271182563,0.32826675,43303.0,43298.0,0.31360596]
[1642271182956,0.32826675,43303.0,43299.0,0.06]
[1642271183154,0.32920106,43303.0,43299.0,0.06]
[1642271183754,0.00093431,43303.0,43299.0,0.06]
[1642271184154,0.00010314,43307.0,43299.0,0.06]
[1642271184406,0.0009343,43303.0,43299.0,0.06]
[1642271185211,8.595e-05,43306.0,43300.0,0.057713]
[1642271185401,0.0009343,43303.0,43300.0,0.057713]
[1642271186203,0.0009343,43303.0,43300.0,0.42151402]
[1642271186403,6.876e-05,43305.0,43300.0,0.42151402]
[1642271186604,0.0009343,43304.0,43300.0,0.52151402]
[1642271186806,0.0009343,43304.0,43300.0,0.113113]
[1642271187005,0.0009343,43304.0,43300.0,0.013113]
[1642271187711,6.876e-05,43305.0,43300.0,0.013113]
[1642271188050,0.00093429,43304.0,43300.0,0.013113]
[1642271188952,6.876e-05,43305.0,43300.0,0.013113]
[1642271189151,0.00093429,43304.0,43300.0,0.013113]
[1642271191353,6.876e-05,43305.0,43300.0,0.013113]
[1642271191554,0.00093429,43304.0,43300.0,0.013113]
[1642271191806,0.00093429,43304.0,43299.0,0.028313]
[1642271192607,0.0009343,43304.0,43299.0,0.028313]
[1642271193007,0.0009343,43304.0,43300.0,0.057713]
[1642271193607,6.876e-05,43305.0,43300.0,0.057713]
[1642271193808,0.00093429,43304.0,43300.0,0.057713]
[1642271194808,6.876e-05,43305.0,43300.0,0.057713]
[1642271195007,0.00093429,43304.0,43300.0,0.057713]
[1642271195208,0.00129032,43303.0,43299.0,0.028313]
[1642271196157,0.00129032,43303.0,43293.0,0.12632518]
[1642271196360,0.00222462,43303.0,43293.0,0.12632518]
[1642271196558,0.00222462,43303.0,43300.0,0.33772917]
[1642271196758,0.0009343,43303.0,43300.0,0.29302917]
[1642271197359,6.876e-05,43305.0,43300.0,0.29302917]
[1642271197560,0.0009343,43304.0,43300.0,0.29302917]
[1642271197962,0.0007663,43304.0,43300.0,0.29302917]
[1642271198563,6.876e-05,43305.0,43300.0,0.29302917]
[1642271201201,0.00065318,43305.0,43300.0,0.29302917]
[1642271201801,0.00065318,43305.0,43300.0,0.24842917]
[1642271202002,6.876e-05,43305.0,43300.0,0.24842917]
[1642271202403,0.00100305,43305.0,43300.0,0.24842917]
[1642271203257,6.876e-05,43305.0,43300.0,0.24842917]
[1642271203451,0.00100305,43305.0,43300.0,0.24842917]
[1642271204551,6.876e-05,43305.0,43300.0,0.24842917]
[1642271204749,0.00100305,43305.0,43300.0,0.24842917]
[1642271205750,6.876e-05,43305.0,43300.0,0.24842917]
[1642271205952,0.00100305,43305.0,43300.0,0.24842917]
[1642271206804,0.00100305,43305.0,43300.0,0.20372917]
[1642271208005,6.876e-05,43305.0,43300.0,0.20372917]
[1642271208206,0.00100305,43305.0,43300.0,0.20372917]
[1642271209305,6.876e-05,43305.0,43300.0,0.20372917]
[1642271209506,0.00100305,43305.0,43300.0,0.20372917]
[1642271210552,6.876e-05,43305.0,43300.0,0.20372917]
[1642271210753,0.00100305,43305.0,43300.0,0.20372917]
[1642271211753,6.876e-05,43305.0,43300.0,0.20372917]
[1642271211953,0.00100305,43305.0,43300.0,0.15912917]
[1642271212152,0.00100305,43305.0,43297.0,0.06]
[1642271212954,6.876e-05,43305.0,43297.0,0.06]
[1642271213153,0.00093429,43304.0,43299.0,0.25998144]
[1642271213553,0.00093429,43304.0,43300.0,0.057717]
[1642271214156,6.876e-05,43305.0,43300.0,0.057717]
[1642271214411,0.00093429,43304.0,43300.0,0.057717]
[1642271215311,6.876e-05,43305.0,43300.0,0.057717]
[1642271215512,0.00093429,43304.0,43300.0,0.057717]
[1642271215712,0.00093429,43304.0,43301.0,0.12680975]
[1642271216414,6.876e-05,43305.0,43301.0,0.12680975]
[1642271216610,0.00100305,43305.0,43300.0,0.057717]
[1642271216810,0.00100305,43305.0,43300.0,0.013017]
[1642271217610,6.876e-05,43305.0,43300.0,0.013017]
[1642271218065,0.00100305,43305.0,43300.0,0.013017]
[1642271218667,0.00100305,43305.0,43299.0,0.35998144]
[1642271218863,6.876e-05,43305.0,43299.0,0.35998144]
[1642271219068,0.00093429,43304.0,43299.0,0.35998144]
[1642271219663,0.00093429,43304.0,43299.0,0.25998144]
[1642271219865,0.00093429,43304.0,43299.0,0.35998144]
[1642271220065,6.876e-05,43305.0,43299.0,0.35998144]
[1642271220267,0.0009343,43304.0,43299.0,0.35998144]
[1642271221268,6.876e-05,43305.0,43299.0,0.35998144]
[1642271221469,0.0009343,43304.0,43299.0,0.1]
[1642271221805,0.0009343,43304.0,43299.0,0.0551]
[1642271222403,6.876e-05,43305.0,43299.0,0.39593317]
[1642271222703,0.0009343,43304.0,43299.0,0.34083317]
[1642271223304,0.0009343,43304.0,43299.0,0.44083317]
[1642271223503,0.0009343,43304.0,43299.0,0.39855117]
[1642271223705,6.876e-05,43305.0,43299.0,0.39855117]
[1642271223706,6.876e-05,43305.0,43299.0,0.49855117]
[1642271223904,0.0009343,43304.0,43299.0,0.49855117]
[1642271224903,6.876e-05,43305.0,43299.0,0.49855117]
[1642271225103,0.0009343,43304.0,43299.0,0.49855117]
[1642271226160,6.876e-05,43305.0,43299.0,0.49855117]
[1642271226365,0.0009343,43304.0,43299.0,0.49855117]
[1642271226962,0.0009343,43304.0,43299.0,0.45395117]
[1642271227362,6.876e-05,43305.0,43299.0,0.45395117]
[1642271227563,0.0009343,43304.0,43299.0,0.45395117]
[1642271230005,0.0009343,43304.0,43299.0,0.1]
[1642271230207,0.00120189,43303.0,43297.0,0.06]
[1642271230807,0.00120189,43303.0,43297.0,0.17543]
[1642271231206,0.00120189,43303.0,43298.0,0.25106207]
[1642271232006,0.00093428,43304.0,43299.0,0.12426668]
[1642271232207,0.00093429,43304.0,43300.0,0.057715]
[1642271233260,6.876e-05,43305.0,43300.0,0.057715]
[1642271233456,0.00093429,43304.0,43300.0,0.057715]
[1642271234458,6.876e-05,43305.0,43300.0,0.057715]
[1642271234658,0.00093429,43304.0,43300.0,0.057715]
[1642271234858,0.00124966,43309.0,43301.0,0.9]
[1642271235062,0.00124966,43309.0,43301.0,0.14616876]
[1642271235259,0.00124966,43309.0,43301.0,0.04616876]
[1642271236058,0.26731483,43306.0,43301.0,0.04616876]
[1642271237104,0.26731483,43306.0,43301.0,0.00126876]
[1642271238304,0.00058399,43306.0,43301.0,0.00126876]
[1642271239304,0.28906204,43308.0,43301.0,0.00126876]
[1642271239509,0.00093427,43306.0,43301.0,0.00126876]
[1642271240558,0.28906204,43308.0,43301.0,0.00126876]
[1642271240759,0.00093427,43306.0,43301.0,0.00126876]
[1642271241759,0.28906204,43308.0,43301.0,0.00126876]
[1642271241959,0.00093427,43306.0,43300.0,0.80128476]
[1642271242160,0.00093427,43306.0,43300.0,0.84738476]
[1642271242963,0.00010314,43307.0,43300.0,0.84738476]
[1642271243160,0.00093426,43306.0,43300.0,0.94738476]
[1642271243361,0.00102021,43306.0,43300.0,0.94738476]
[1642271243560,6.876e-05,43305.0,43300.0,0.94738476]
[1642271245614,6.876e-05,43305.0,43301.0,0.12362576]
[1642271246710,6.876e-05,43305.0,43301.0,0.12428823]
[1642271246910,6.876e-05,43305.0,43301.0,0.08234277]
[1642271247110,6.876e-05,43305.0,43300.0,0.90128476]
[1642271247310,6.876e-05,43305.0,43301.0,0.0461]
[1642271248958,0.001,43302.0,43301.0,0.0461]
[1642271249155,0.001,43302.0,43301.0,0.8961]
[1642271249557,0.001,43302.0,43301.0,0.9961]
[1642271252112,0.001,43302.0,43301.0,0.9512]
[1642271256558,0.001,43302.0,43301.0,1.008916]
[1642271256958,0.001,43302.0,43301.0,0.964216]
[1642271257158,0.001,43302.0,43301.0,1.460316]
[1642271260009,0.001,43302.0,43301.0,2.310316]
[1642271260811,0.001,43302.0,43301.0,1.460316]
[1642271261009,0.001,43302.0,43301.0,2.010316]
[1642271262111,0.001,43302.0,43301.0,1.965516]
[1642271263061,0.001,43302.0,43301.0,2.615516]
[1642271263868,6.876e-05,43305.0,43302.0,2.3077]
[1642271264064,6.876e-05,43305.0,43304.0,2.541293]
[1642271264263,6.876e-05,43305.0,43304.0,2.9185242]
[1642271264463,0.0005297,43314.0,43305.0,2.2]
[1642271264664,0.0005297,43314.0,43306.0,0.0461]
[1642271264864,0.00013752,43313.0,43312.0,0.32849569]
[1642271265064,0.00013752,43313.0,43312.0,0.47459569]
[1642271265364,0.00013752,43313.0,43312.0,0.53229069]
[1642271265568,0.00013752,43313.0,43312.0,0.1461]
[1642271266169,0.57816316,43319.0,43312.0,0.1461]
[1642271266370,0.57816316,43319.0,43312.0,0.0461]
[1642271266566,0.30896103,43316.0,43312.0,0.0461]
[1642271267211,0.30896103,43316.0,43312.0,0.0014]
[1642271268411,0.30989523,43316.0,43312.0,0.0014]
[1642271269312,0.30896103,43316.0,43312.0,0.0014]
[1642271269511,0.30989523,43316.0,43312.0,0.0014]
[1642271269912,0.0009342,43316.0,43312.0,0.0014]
[1642271270554,8.595e-05,43318.0,43312.0,0.0014]
[1642271270760,0.0009342,43316.0,43313.0,0.057699]
[1642271270956,0.0009342,43316.0,43314.0,0.0461]
[1642271271759,0.29645218,43317.0,43314.0,0.0461]
[1642271271956,0.29738637,43317.0,43314.0,0.0461]
[1642271272156,0.00100295,43317.0,43314.0,0.0015]
[1642271272961,6.876e-05,43317.0,43314.0,0.0015]
[1642271273358,0.28311319,43317.0,43314.0,0.0015]
[1642271275013,6.876e-05,43317.0,43314.0,0.0015]
[1642271275914,0.25701447,43317.0,43314.0,0.0015]
[1642271277018,0.25701447,43317.0,43311.0,0.2190144]
[1642271277214,0.25701447,43317.0,43312.0,0.0461]
[1642271278081,0.25794866,43317.0,43312.0,0.0461]
[1642271278982,0.25701447,43317.0,43312.0,0.0461]
[1642271279186,0.25701447,43317.0,43302.0,0.00122169]
[1642271279187,0.6,43315.0,43302.0,0.00122169]
[1642271279386,0.00128279,43313.0,43302.0,0.5]
[1642271279690,0.00125798,43304.0,43303.0,0.0001719]
[1642271279883,0.19271802,43304.0,43303.0,0.0001719]
[1642271280082,0.62244266,43304.0,43303.0,0.0001719]
[1642271280283,1.676366,43303.0,43288.0,0.115452]
[1642271280582,1.676366,43303.0,43289.0,0.50024066]
[1642271280583,0.0012959,43297.0,43289.0,0.50024066]
[1642271280982,0.0012959,43297.0,43290.0,0.00022347]
[1642271281381,0.31034659,43296.0,43290.0,0.00022347]
[1642271281583,0.13767997,43295.0,43291.0,0.00035507]
[1642271282025,0.13767997,43295.0,43292.0,0.00018909]
[1642271282227,0.13767997,43295.0,43286.0,0.115458]
[1642271282228,0.13767997,43295.0,43286.0,0.07130216]
[1642271282428,0.13767997,43295.0,43287.0,0.32126926]
[1642271282623,0.13767997,43295.0,43287.0,0.32135521]
[1642271284028,0.13767997,43295.0,43287.0,0.42135521]
[1642271285229,0.13767997,43295.0,43287.0,0.09508595]
[1642271285429,0.13767997,43295.0,43286.0,0.07130216]
[1642271285658,0.00012033,43294.0,43286.0,0.07130216]
[1642271286059,0.13767997,43295.0,43286.0,0.07130216]
[1642271286060,0.00010314,43293.0,43286.0,0.07130216]
[1642271286261,0.00010314,43293.0,43288.0,0.33657159]
[1642271286460,8.595e-05,43292.0,43288.0,0.33657159]
[1642271286860,0.13767997,43295.0,43288.0,0.33657159]
[1642271286861,6.876e-05,43291.0,43288.0,0.33157159]
[1642271287061,6.876e-05,43291.0,43288.0,0.28687159]
[1642271287261,0.00012033,43294.0,43288.0,0.28633863]
[1642271287661,0.00010314,43293.0,43287.0,0.00053297]
[1642271288063,8.595e-05,43292.0,43287.0,0.00053297]
[1642271288462,6.876e-05,43291.0,43286.0,0.17130216]
[1642271288662,6.876e-05,43291.0,43287.0,0.00053297]
[1642271288862,0.00012033,43294.0,43287.0,0.00053297]
[1642271289314,0.00010314,43293.0,43287.0,0.00053297]
[1642271289715,8.595e-05,43292.0,43286.0,0.48317648]
[1642271289917,8.595e-05,43292.0,43288.0,0.00053296]
[1642271290119,6.876e-05,43291.0,43288.0,0.00053296]
[1642271290317,6.876e-05,43291.0,43286.0,0.47870944]
[1642271290518,0.13767997,43295.0,43286.0,0.47870944]
[1642271290519,0.00012033,43294.0,43286.0,0.47870944]
[1642271290918,0.00010314,43293.0,43286.0,0.47870944]
[1642271291319,8.595e-05,43292.0,43286.0,0.47870944]
[1642271291719,6.876e-05,43291.0,43286.0,0.47870944]
[1642271292122,0.00012033,43294.0,43286.0,0.43390944]
[1642271292519,0.00010314,43293.0,43286.0,0.43390944]
[1642271292919,0.13767997,43295.0,43286.0,0.43390944]
[1642271292920,8.595e-05,43292.0,43286.0,0.43390944]
[1642271293361,6.876e-05,43291.0,43286.0,0.43390944]
[1642271293761,0.00012033,43294.0,43286.0,0.43390944]
[1642271293961,0.00012033,43294.0,43286.0,0.41187432]
[1642271294161,0.00010314,43293.0,43286.0,0.41187432]
[1642271294561,8.595e-05,43292.0,43286.0,0.31187432]
[1642271294761,8.595e-05,43292.0,43286.0,0.31240329]
[1642271294963,6.876e-05,43291.0,43286.0,0.31240329]
[1642271295372,0.00012033,43294.0,43286.0,0.41240329]
[1642271295762,0.00010314,43293.0,43286.0,0.41187432]
[1642271295962,0.00010314,43293.0,43286.0,0.41240329]
[1642271296162,8.595e-05,43292.0,43286.0,0.41240329]
[1642271296363,8.595e-05,43292.0,43286.0,0.31240329]